[Event "Rapid della Domenica"]
[Site "Chess.com"]
[Date "2020.05.31"]
[Round "1"]
[White "fausto2p"]
[Black "sergiodone"]
[Result "1-0"]
[WhiteElo "1201"]
[BlackElo "1411"]
[TimeControl "720+3"]
[EndTime "6:17:28 PDT"]
[Termination "fausto2p ha vinto per abbandono"]

1. d4 {[%clk 0:12:00.8]} 1... Nf6 {[%clk 0:11:56.1]} 2. c4 {[%clk 0:12:00.6]}
2... c5 {[%clk 0:11:56.8]} 3. d5 {[%clk 0:11:55.9]} 3... b5 {[%clk 0:11:57.6]}
4. cxb5 {[%clk 0:11:48.3]} 4... a6 {[%clk 0:11:58.3]} 5. Nc3 {[%clk 0:11:33.2]}
5... d6 {[%clk 0:11:46.5]} 6. e4 {[%clk 0:11:22.7]} 6... Nbd7 {[%clk 0:11:33.6]}
7. Nf3 {[%clk 0:11:15.8]} 7... axb5 {[%clk 0:11:35.3]} 8. Bxb5 {[%clk 0:11:03]}
8... Ba6 {[%clk 0:11:26.6]} 9. a4 {[%clk 0:10:11.6]} 9... Bxb5 {[%clk
0:11:24.6]} 10. Nxb5 {[%clk 0:10:12.1]} 10... g6 {[%clk 0:11:16.2]} 11. O-O
{[%clk 0:10:08.4]} 11... Bg7 {[%clk 0:11:18]} 12. Rb1 {[%clk 0:10:02.4]} 12...
O-O {[%clk 0:11:18.8]} 13. b3 {[%clk 0:09:48.3]} 13... Nxe4 {[%clk 0:11:18.5]}
14. Re1 {[%clk 0:09:14.2]} 14... Ndf6 {[%clk 0:11:19.8]} 15. Bg5 {[%clk
0:09:02.1]} 15... Qa5 {[%clk 0:11:20.1]} 16. Bxf6 {[%clk 0:08:22.5]} 16... Nxf6
{[%clk 0:11:18.3]} 17. Rxe7 {[%clk 0:08:20.1]} 17... Rfe8 {[%clk 0:11:12.5]} 18.
Rxe8+ {[%clk 0:08:13.9]} 18... Rxe8 {[%clk 0:11:13.2]} 19. Nxd6 {[%clk 0:08:09]}
19... Rb8 {[%clk 0:10:27.6]} 20. Nc4 {[%clk 0:07:08.3]} 20... Qb4 {[%clk
0:10:06]} 21. Nfe5 {[%clk 0:06:41.2]} 21... Re8 {[%clk 0:09:15.2]} 22. d6 {[%clk
0:05:47.8]} 22... Ne4 {[%clk 0:08:40.3]} 23. d7 {[%clk 0:05:36.8]} 23... Rf8
{[%clk 0:08:27.4]} 24. Nc6 {[%clk 0:05:28.2]} 24... Qb7 {[%clk 0:06:43.9]} 25.
d8=Q {[%clk 0:05:16]} 25... Qxc6 {[%clk 0:06:45.4]} 26. Qxf8+ {[%clk 0:05:08.5]}
26... Bxf8 {[%clk 0:06:44.7]} 27. Qd3 {[%clk 0:04:09.6]} 27... Nc3 {[%clk
0:06:02.8]} 28. Qxc3 {[%clk 0:04:01.4]} 28... h5 {[%clk 0:05:44.1]} 29. Qf3
{[%clk 0:03:56.2]} 29... Bg7 {[%clk 0:05:43.3]} 30. Qxc6 {[%clk 0:03:57.2]} 1-0

[Event "Rapid della Domenica"]
[Site "Chess.com"]
[Date "2020.05.31"]
[Round "1"]
[White "Mrtre7"]
[Black "OMatteoWuO"]
[Result "1-0"]
[WhiteElo "1475"]
[BlackElo "1226"]
[TimeControl "720+3"]
[EndTime "6:18:45 PDT"]
[Termination "Mrtre7 ha vinto per scaccomatto"]

1. d4 {[%clk 0:12:00.3]} 1... Nf6 {[%clk 0:11:59.1]} 2. c4 {[%clk 0:11:12.4]}
2... g6 {[%clk 0:11:28.3]} 3. Nc3 {[%clk 0:10:57]} 3... Bg7 {[%clk 0:11:28.8]}
4. e4 {[%clk 0:10:55.9]} 4... d6 {[%clk 0:11:27.6]} 5. Nf3 {[%clk 0:10:50.2]}
5... O-O {[%clk 0:11:07.6]} 6. Be2 {[%clk 0:10:48.5]} 6... e5 {[%clk 0:11:05.5]}
7. Be3 {[%clk 0:10:48.4]} 7... Nbd7 {[%clk 0:10:22.1]} 8. O-O {[%clk 0:10:48.4]}
8... a5 {[%clk 0:10:13.7]} 9. d5 {[%clk 0:10:34.1]} 9... Nc5 {[%clk 0:10:12.5]}
10. Bxc5 {[%clk 0:10:28.6]} 10... dxc5 {[%clk 0:10:13.6]} 11. Nd2 {[%clk
0:10:26]} 11... b6 {[%clk 0:08:37]} 12. Rb1 {[%clk 0:10:00.9]} 12... Nh5 {[%clk
0:08:10.6]} 13. Bxh5 {[%clk 0:09:39.9]} 13... gxh5 {[%clk 0:08:11.1]} 14. Qxh5
{[%clk 0:09:40.3]} 14... f5 {[%clk 0:08:03.7]} 15. Nf3 {[%clk 0:09:15.6]} 15...
fxe4 {[%clk 0:07:57.9]} 16. Nxe4 {[%clk 0:09:14.1]} 16... Bf5 {[%clk 0:07:54.2]}
17. Rbe1 {[%clk 0:08:54.3]} 17... Bg6 {[%clk 0:07:29.9]} 18. Qg4 {[%clk
0:08:53.4]} 18... Bf5 {[%clk 0:07:26.3]} 19. Qg3 {[%clk 0:08:41.2]} 19... a4
{[%clk 0:07:17.9]} 20. Nxe5 {[%clk 0:08:07.2]} 20... Bxe4 {[%clk 0:07:15.9]} 21.
Rxe4 {[%clk 0:07:58.8]} 21... Qf6 {[%clk 0:06:56.8]} 22. Nd7 {[%clk 0:07:24.6]}
22... Qf5 {[%clk 0:06:54.4]} 23. Re7 {[%clk 0:07:12.3]} 23... Rf7 {[%clk
0:06:47.9]} 24. Rxf7 {[%clk 0:05:41.8]} 24... Kxf7 {[%clk 0:06:33.6]} 25. d6
{[%clk 0:04:37.5]} 25... Qxd7 {[%clk 0:06:29.5]} 26. Qf3+ {[%clk 0:04:39.3]}
26... Bf6 {[%clk 0:06:30.7]} 27. Qxa8 {[%clk 0:04:40.3]} 27... Qxd6 {[%clk
0:06:27.9]} 28. Qf3 {[%clk 0:04:37.4]} 28... h5 {[%clk 0:06:14.5]} 29. g3 {[%clk
0:04:27.6]} 29... Kg6 {[%clk 0:06:07.6]} 30. Rd1 {[%clk 0:04:19.6]} 30... Qe7
{[%clk 0:05:55]} 31. Rd5 {[%clk 0:04:03.5]} 31... Qe1+ {[%clk 0:05:37.9]} 32.
Kg2 {[%clk 0:04:04.7]} 32... Qc1 {[%clk 0:05:17.4]} 33. Qxh5+ {[%clk 0:03:57.8]}
33... Kg7 {[%clk 0:05:15.3]} 34. Rd7+ {[%clk 0:03:51.5]} 34... Kf8 {[%clk
0:05:04.6]} 35. Qf7# {[%clk 0:03:52.3]} 1-0

[Event "Rapid della Domenica"]
[Site "Chess.com"]
[Date "2020.05.31"]
[Round "1"]
[White "SanSecondoPR"]
[Black "mr6701"]
[Result "0-1"]
[WhiteElo "1332"]
[BlackElo "1830"]
[TimeControl "720+3"]
[EndTime "6:28:10 PDT"]
[Termination "mr6701 ha vinto per tempo"]

1. e4 {[%clk 0:11:58.2]} 1... d5 {[%clk 0:12:01.7]} 2. exd5 {[%clk 0:11:57.6]}
2... Nf6 {[%clk 0:12:03.7]} 3. Nf3 {[%clk 0:11:57.3]} 3... Nxd5 {[%clk
0:12:05.2]} 4. Bc4 {[%clk 0:11:49.6]} 4... e6 {[%clk 0:12:03.9]} 5. O-O {[%clk
0:11:49.3]} 5... Bd6 {[%clk 0:12:05.4]} 6. Nc3 {[%clk 0:11:41.1]} 6... c6 {[%clk
0:12:05.6]} 7. Bxd5 {[%clk 0:11:41.7]} 7... cxd5 {[%clk 0:12:06.2]} 8. d4 {[%clk
0:11:37.6]} 8... O-O {[%clk 0:12:07.2]} 9. Ne5 {[%clk 0:11:32]} 9... Nc6 {[%clk
0:12:03.8]} 10. Nf3 {[%clk 0:11:22.1]} 10... a6 {[%clk 0:11:50.8]} 11. Bg5
{[%clk 0:11:17.8]} 11... Qc7 {[%clk 0:11:52.5]} 12. Re1 {[%clk 0:11:02.8]} 12...
Ne7 {[%clk 0:11:51.5]} 13. Bh4 {[%clk 0:10:14.5]} 13... Ng6 {[%clk 0:11:49.8]}
14. Bg3 {[%clk 0:10:15]} 14... Bd7 {[%clk 0:11:45]} 15. Qd2 {[%clk 0:09:39.2]}
15... Rac8 {[%clk 0:11:42.9]} 16. Rac1 {[%clk 0:09:33.9]} 16... b5 {[%clk
0:11:36.8]} 17. Ne2 {[%clk 0:09:22]} 17... Rfe8 {[%clk 0:11:17.9]} 18. c3 {[%clk
0:09:16.8]} 18... Qb8 {[%clk 0:11:07.7]} 19. Qg5 {[%clk 0:09:02.7]} 19... h6
{[%clk 0:11:00.6]} 20. Qd2 {[%clk 0:08:55.1]} 20... Ne7 {[%clk 0:11:00]} 21. Ne5
{[%clk 0:08:52.4]} 21... Rcd8 {[%clk 0:10:56.4]} 22. Qf4 {[%clk 0:08:36.2]}
22... Rf8 {[%clk 0:10:35.2]} 23. Qh4 {[%clk 0:08:24.7]} 23... Nf5 {[%clk
0:10:20.7]} 24. Qh3 {[%clk 0:08:13.4]} 24... b4 {[%clk 0:09:59.1]} 25. Nf4
{[%clk 0:07:28]} 25... bxc3 {[%clk 0:09:28.2]} 26. bxc3 {[%clk 0:07:18.7]} 26...
Qb2 {[%clk 0:09:19.5]} 27. Nfd3 {[%clk 0:07:00.6]} 27... Qa3 {[%clk 0:08:52]}
28. Re2 {[%clk 0:06:29.5]} 28... Bb5 {[%clk 0:08:37.6]} 29. Bf4 {[%clk
0:05:31.9]} 29... f6 {[%clk 0:08:08.4]} 30. g4 {[%clk 0:04:46.9]} 30... Bxd3
{[%clk 0:07:25.7]} 31. Nxd3 {[%clk 0:04:40.7]} 31... Bxf4 {[%clk 0:07:27.1]} 32.
Rce1 {[%clk 0:04:20.7]} 32... Nxd4 {[%clk 0:04:18.5]} 33. cxd4 {[%clk
0:04:07.5]} 33... Bg5 {[%clk 0:04:20]} 34. f4 {[%clk 0:03:56.5]} 34... Qc3
{[%clk 0:03:50.2]} 35. fxg5 {[%clk 0:03:49.4]} 35... Qxd4+ {[%clk 0:03:49.4]}
36. Nf2 {[%clk 0:03:31.5]} 36... fxg5 {[%clk 0:03:41.4]} 37. Qe3 {[%clk
0:03:24.3]} 37... Qc5 {[%clk 0:03:28.2]} 38. Qxe6+ {[%clk 0:03:09.3]} 38... Kh8
{[%clk 0:03:29.3]} 39. Qe3 {[%clk 0:02:53.3]} 39... d4 {[%clk 0:03:28.8]} 40.
Qd3 {[%clk 0:02:28.3]} 40... a5 {[%clk 0:02:26.9]} 41. Re7 {[%clk 0:02:18.5]}
41... Qc3 {[%clk 0:02:00.9]} 42. Rxg7 {[%clk 0:00:58.5]} 42... Kxg7 {[%clk
0:01:58.3]} 43. Re7+ {[%clk 0:00:56.2]} 43... Rf7 {[%clk 0:01:48.9]} 44. Rxf7+
{[%clk 0:00:50.9]} 44... Kxf7 {[%clk 0:01:51.8]} 45. Qh7+ {[%clk 0:00:50.5]}
45... Ke8 {[%clk 0:01:52.6]} 46. Qg8+ {[%clk 0:00:41]} 46... Kd7 {[%clk
0:01:53.8]} 47. Qd5+ {[%clk 0:00:38.7]} 47... Kc8 {[%clk 0:01:55.1]} 48. Qe6+
{[%clk 0:00:36]} 48... Kb7 {[%clk 0:01:45.5]} 49. Qe7+ {[%clk 0:00:27.9]} 49...
Qc7 {[%clk 0:01:46.8]} 50. Qe4+ {[%clk 0:00:26.5]} 50... Qc6 {[%clk 0:01:42.9]}
51. Qb1+ {[%clk 0:00:23]} 51... Ka7 {[%clk 0:01:40.2]} 52. Qh7+ {[%clk
0:00:17.6]} 52... Rd7 {[%clk 0:01:41.1]} 53. Qh8 {[%clk 0:00:07.3]} 53... d3
{[%clk 0:01:39.6]} 0-1

[Event "Rapid della Domenica"]
[Site "Chess.com"]
[Date "2020.05.31"]
[Round "2"]
[White "mr6701"]
[Black "fausto2p"]
[Result "1-0"]
[WhiteElo "1832"]
[BlackElo "1200"]
[TimeControl "720+3"]
[EndTime "6:42:31 PDT"]
[Termination "mr6701 ha vinto per scaccomatto"]

1. e4 {[%clk 0:12:02.9]} 1... e6 {[%clk 0:12:00.9]} 2. d4 {[%clk 0:12:04.8]}
2... d5 {[%clk 0:11:59.9]} 3. Nc3 {[%clk 0:12:06.8]} 3... Bb4 {[%clk 0:11:32.3]}
4. Bd2 {[%clk 0:11:58.1]} 4... Bxc3 {[%clk 0:11:23.2]} 5. Bxc3 {[%clk
0:11:57.7]} 5... dxe4 {[%clk 0:11:23.5]} 6. Qg4 {[%clk 0:11:58.4]} 6... Nf6
{[%clk 0:11:22.1]} 7. Qxg7 {[%clk 0:11:59.3]} 7... Rg8 {[%clk 0:11:20.8]} 8. Qh6
{[%clk 0:12:01.7]} 8... Rg6 {[%clk 0:11:16]} 9. Qe3 {[%clk 0:12:01.7]} 9... a6
{[%clk 0:10:34.5]} 10. Ne2 {[%clk 0:12:02.1]} 10... b5 {[%clk 0:10:29.5]} 11.
Nf4 {[%clk 0:12:02.5]} 11... Rg7 {[%clk 0:09:43.2]} 12. O-O-O {[%clk 0:12:03.8]}
12... Bb7 {[%clk 0:09:36.4]} 13. h3 {[%clk 0:12:00.4]} 13... Nd5 {[%clk
0:08:23.5]} 14. Qxe4 {[%clk 0:11:57]} 14... Ra7 {[%clk 0:06:53.5]} 15. Nxd5
{[%clk 0:11:56.5]} 15... Bxd5 {[%clk 0:06:51.9]} 16. Qe5 {[%clk 0:11:56.9]}
16... Kf8 {[%clk 0:06:30.3]} 17. Bb4+ {[%clk 0:11:44.8]} 17... Kg8 {[%clk
0:06:17.6]} 18. Bc5 {[%clk 0:11:01.4]} 18... Nc6 {[%clk 0:06:14.2]} 19. Qh5
{[%clk 0:10:59.7]} 19... Rb7 {[%clk 0:05:46.8]} 20. Bd3 {[%clk 0:10:57.3]} 20...
a5 {[%clk 0:05:13.8]} 21. h4 {[%clk 0:10:53.6]} 21... a4 {[%clk 0:05:09.7]} 22.
Rh3 {[%clk 0:10:55.4]} 22... Bxg2 {[%clk 0:04:08.5]} 23. Rg3 {[%clk 0:10:54]}
23... Qf6 {[%clk 0:01:49.6]} 24. Qxh7# {[%clk 0:10:42.4]} 1-0

[Event "Rapid della Domenica"]
[Site "Chess.com"]
[Date "2020.05.31"]
[Round "2"]
[White "malberici"]
[Black "SanSecondoPR"]
[Result "0-1"]
[WhiteElo "1334"]
[BlackElo "1340"]
[TimeControl "720+3"]
[EndTime "6:44:47 PDT"]
[Termination "SanSecondoPR ha vinto per abbandono"]

1. d4 {[%clk 0:12:02.9]} 1... d5 {[%clk 0:12:01]} 2. c4 {[%clk 0:12:04.7]} 2...
e5 {[%clk 0:12:01.5]} 3. e3 {[%clk 0:12:02.9]} 3... Bb4+ {[%clk 0:11:55.8]} 4.
Bd2 {[%clk 0:12:02.8]} 4... Bxd2+ {[%clk 0:11:57.1]} 5. Nxd2 {[%clk 0:12:00.3]}
5... exd4 {[%clk 0:11:58]} 6. exd4 {[%clk 0:11:57.7]} 6... Nf6 {[%clk
0:11:56.8]} 7. cxd5 {[%clk 0:11:55.5]} 7... Nxd5 {[%clk 0:11:52.5]} 8. Bc4
{[%clk 0:11:52.5]} 8... O-O {[%clk 0:11:51.1]} 9. Ne2 {[%clk 0:11:49.9]} 9...
Re8 {[%clk 0:11:49.2]} 10. O-O {[%clk 0:11:48.5]} 10... Bg4 {[%clk 0:11:47.4]}
11. Qb3 {[%clk 0:11:33.2]} 11... c6 {[%clk 0:11:32.7]} 12. Ng3 {[%clk
0:11:26.4]} 12... b5 {[%clk 0:11:10.3]} 13. Bxd5 {[%clk 0:11:10.6]} 13... Qxd5
{[%clk 0:11:05.5]} 14. Rae1 {[%clk 0:10:49]} 14... Nd7 {[%clk 0:11:02.1]} 15.
Nf3 {[%clk 0:10:27.5]} 15... Bxf3 {[%clk 0:10:48.5]} 16. Rxe8+ {[%clk
0:10:18.8]} 16... Rxe8 {[%clk 0:10:44.8]} 17. Qxf3 {[%clk 0:10:15.9]} 17... Qxf3
{[%clk 0:10:38.7]} 18. gxf3 {[%clk 0:10:16.9]} 18... g6 {[%clk 0:10:31.7]} 19.
Ne4 {[%clk 0:10:17.9]} 19... Kg7 {[%clk 0:10:29.4]} 20. Kg2 {[%clk 0:10:17]}
20... f5 {[%clk 0:10:28.7]} 21. Nc5 {[%clk 0:10:02.3]} 21... Nxc5 {[%clk
0:10:22.9]} 22. dxc5 {[%clk 0:10:02.9]} 22... Re2 {[%clk 0:10:15.3]} 23. Rb1
{[%clk 0:10:00.1]} 23... Rc2 {[%clk 0:10:13.1]} 24. a3 {[%clk 0:09:01.3]} 24...
Rxc5 {[%clk 0:10:12.1]} 25. b4 {[%clk 0:09:03.1]} 25... Rc4 {[%clk 0:10:01.2]}
26. Rb3 {[%clk 0:08:59.5]} 26... Kf6 {[%clk 0:09:52.6]} 27. Rd3 {[%clk
0:08:55.9]} 27... Ke7 {[%clk 0:09:28.7]} 28. Kg3 {[%clk 0:08:55]} 28... f4+
{[%clk 0:09:20.3]} 29. Kg2 {[%clk 0:08:46.7]} 29... c5 {[%clk 0:09:04]} 30. bxc5
{[%clk 0:08:36.1]} 30... Rxc5 {[%clk 0:09:03.1]} 31. Rd4 {[%clk 0:08:37.8]}
31... Rc4 {[%clk 0:08:57.5]} 32. Rd3 {[%clk 0:08:34.6]} 32... a5 {[%clk
0:08:54.1]} 33. Rd5 {[%clk 0:08:34.4]} 33... Ra4 {[%clk 0:08:43.5]} 34. Rxb5
{[%clk 0:08:32.1]} 34... Rxa3 {[%clk 0:08:44.3]} 35. Rb7+ {[%clk 0:08:33.5]}
35... Kf6 {[%clk 0:08:40.4]} 36. Rxh7 {[%clk 0:08:33.9]} 36... g5 {[%clk
0:08:33]} 37. Rh6+ {[%clk 0:08:30.1]} 37... Kf5 {[%clk 0:08:28.4]} 38. Ra6
{[%clk 0:08:25.7]} 38... a4 {[%clk 0:08:23.4]} 39. Ra5+ {[%clk 0:08:15.6]} 39...
Kg6 {[%clk 0:08:20]} 40. Kf1 {[%clk 0:08:17.4]} 40... Kh5 {[%clk 0:08:13.1]} 41.
Ke2 {[%clk 0:08:14.4]} 41... Kh4 {[%clk 0:08:11.4]} 42. h3 {[%clk 0:07:59]}
42... Ra2+ {[%clk 0:07:34.4]} 43. Kf1 {[%clk 0:07:56.2]} 43... a3 {[%clk
0:07:29]} 44. Ke1 {[%clk 0:07:49.3]} 44... Ra1+ {[%clk 0:07:26.9]} 45. Kd2
{[%clk 0:07:50]} 45... Kxh3 {[%clk 0:07:16.1]} 46. Rxg5 {[%clk 0:07:48.7]} 46...
a2 {[%clk 0:07:14.6]} 47. Ra5 {[%clk 0:07:28.5]} 47... Kg2 {[%clk 0:07:09.8]}
48. Kc2 {[%clk 0:07:19.4]} 48... Kxf2 {[%clk 0:06:59.4]} 49. Ra3 {[%clk
0:07:10.4]} 49... Re1 {[%clk 0:06:55.5]} 50. Rxa2 {[%clk 0:07:01.7]} 50... Re2+
{[%clk 0:06:55.4]} 51. Kb3 {[%clk 0:06:22.6]} 51... Rxa2 {[%clk 0:06:54.8]} 52.
Kxa2 {[%clk 0:06:24.2]} 52... Kxf3 {[%clk 0:06:55.6]} 0-1

[Event "Rapid della Domenica"]
[Site "Chess.com"]
[Date "2020.05.31"]
[Round "2"]
[White "sergiodone"]
[Black "Mrtre7"]
[Result "1-0"]
[WhiteElo "1420"]
[BlackElo "1466"]
[TimeControl "720+3"]
[EndTime "6:49:29 PDT"]
[Termination "sergiodone ha vinto per abbandono"]

1. e4 {[%clk 0:11:44.3]} 1... c5 {[%clk 0:12:00.7]} 2. Nf3 {[%clk 0:11:44.8]}
2... Nc6 {[%clk 0:11:57.5]} 3. d4 {[%clk 0:11:45.1]} 3... cxd4 {[%clk
0:11:58.5]} 4. Nxd4 {[%clk 0:11:45.5]} 4... g6 {[%clk 0:12:00.4]} 5. Nf3 {[%clk
0:11:39.5]} 5... Bg7 {[%clk 0:12:01.9]} 6. c3 {[%clk 0:11:40.3]} 6... Nf6 {[%clk
0:12:01.4]} 7. Bd3 {[%clk 0:11:40.5]} 7... O-O {[%clk 0:12:02.6]} 8. O-O {[%clk
0:11:36.4]} 8... d5 {[%clk 0:11:55.8]} 9. e5 {[%clk 0:11:36.3]} 9... Ng4 {[%clk
0:11:56.8]} 10. Bf4 {[%clk 0:10:59.3]} 10... Ngxe5 {[%clk 0:11:54.1]} 11. Nxe5
{[%clk 0:11:00.3]} 11... Nxe5 {[%clk 0:11:55.5]} 12. Bc2 {[%clk 0:10:56.7]}
12... Qb6 {[%clk 0:11:11.8]} 13. Bb3 {[%clk 0:10:42.7]} 13... e6 {[%clk
0:10:46.1]} 14. Na3 {[%clk 0:10:10.7]} 14... Bd7 {[%clk 0:10:36.3]} 15. Nc2
{[%clk 0:10:11.1]} 15... Bb5 {[%clk 0:10:15.2]} 16. Be3 {[%clk 0:10:01.3]} 16...
Qd6 {[%clk 0:09:52.1]} 17. Re1 {[%clk 0:10:02.4]} 17... Nd3 {[%clk 0:09:46.5]}
18. Nd4 {[%clk 0:09:44.7]} 18... Bxd4 {[%clk 0:08:38.6]} 19. Bxd4 {[%clk
0:09:38]} 19... Nxe1 {[%clk 0:08:40.2]} 20. Qxe1 {[%clk 0:09:39.1]} 20... f6
{[%clk 0:07:43.1]} 21. f3 {[%clk 0:07:55.6]} 21... e5 {[%clk 0:07:27.4]} 22. Bf2
{[%clk 0:07:56]} 22... Rfe8 {[%clk 0:06:12.1]} 23. Rd1 {[%clk 0:07:55]} 23...
Kg7 {[%clk 0:05:48]} 24. Rxd5 {[%clk 0:07:51.8]} 24... Qc7 {[%clk 0:05:24.6]}
25. Rxb5 {[%clk 0:07:48.2]} 25... a6 {[%clk 0:05:13.1]} 26. Rc5 {[%clk
0:07:48.9]} 26... Qd6 {[%clk 0:05:02.1]} 27. Rd5 {[%clk 0:07:48.6]} 27... Qc6
{[%clk 0:04:55]} 28. h3 {[%clk 0:07:15.5]} 28... a5 {[%clk 0:03:57.2]} 29. Rc5
{[%clk 0:07:04.5]} 29... Qd6 {[%clk 0:03:24.5]} 30. Qe4 {[%clk 0:06:37.1]} 30...
Qd2 {[%clk 0:02:19.2]} 31. Qxb7+ {[%clk 0:06:31.8]} 31... Kh6 {[%clk 0:01:55.6]}
32. Rc7 {[%clk 0:06:24.5]} 32... Rh8 {[%clk 0:01:53.6]} 33. Qb6 {[%clk
0:05:43.8]} 33... Qc1+ {[%clk 0:01:26.9]} 34. Kh2 {[%clk 0:05:44.3]} 34... Rhf8
{[%clk 0:01:08.3]} 35. Be3+ {[%clk 0:05:44.3]} 35... Qxe3 {[%clk 0:01:07.7]} 36.
Qxe3+ {[%clk 0:05:44.7]} 1-0

[Event "Rapid della Domenica"]
[Site "Chess.com"]
[Date "2020.05.31"]
[Round "3"]
[White "Mrtre7"]
[Black "mr6701"]
[Result "0-1"]
[WhiteElo "1464"]
[BlackElo "1838"]
[TimeControl "720+3"]
[EndTime "6:58:50 PDT"]
[Termination "mr6701 ha vinto per abbandono"]

1. d4 {[%clk 0:12:02.9]} 1... d5 {[%clk 0:11:58.8]} 2. c4 {[%clk 0:11:57.3]}
2... e6 {[%clk 0:12:00.8]} 3. Nc3 {[%clk 0:11:57.7]} 3... Nf6 {[%clk 0:12:03.2]}
4. cxd5 {[%clk 0:11:59.4]} 4... exd5 {[%clk 0:12:04.7]} 5. Bg5 {[%clk
0:12:00.3]} 5... Be7 {[%clk 0:12:06.5]} 6. e3 {[%clk 0:11:59.8]} 6... h6 {[%clk
0:12:08.6]} 7. Bh4 {[%clk 0:12:00.5]} 7... O-O {[%clk 0:12:10.5]} 8. Bd3 {[%clk
0:11:13.9]} 8... c5 {[%clk 0:12:07.3]} 9. dxc5 {[%clk 0:11:07.6]} 9... Bxc5
{[%clk 0:12:09.1]} 10. Qc2 {[%clk 0:11:06.8]} 10... Nc6 {[%clk 0:12:05.9]} 11.
Bxf6 {[%clk 0:10:40.4]} 11... Qxf6 {[%clk 0:12:02.2]} 12. Nxd5 {[%clk
0:10:37.7]} 12... Qg5 {[%clk 0:12:04.6]} 13. Nf4 {[%clk 0:10:14.7]} 13... Nb4
{[%clk 0:11:55.8]} 14. Qc3 {[%clk 0:08:53.6]} 14... Nxd3+ {[%clk 0:11:33.1]} 15.
Qxd3 {[%clk 0:08:32.6]} 15... Bb4+ {[%clk 0:11:34.6]} 16. Ke2 {[%clk 0:08:18.5]}
16... Rd8 {[%clk 0:11:29.3]} 17. Nf3 {[%clk 0:07:51.2]} 17... Rxd3 {[%clk
0:11:15.7]} 18. Nxg5 {[%clk 0:07:51.6]} 18... Rd2+ {[%clk 0:11:17.8]} 19. Kf3
{[%clk 0:07:35.7]} 19... hxg5 {[%clk 0:11:19.8]} 20. Ne2 {[%clk 0:06:11.8]}
20... g4+ {[%clk 0:11:11.8]} 0-1

[Event "Rapid della Domenica"]
[Site "Chess.com"]
[Date "2020.05.31"]
[Round "3"]
[White "OMatteoWuO"]
[Black "sergiodone"]
[Result "1-0"]
[WhiteElo "1240"]
[BlackElo "1408"]
[TimeControl "720+3"]
[EndTime "7:03:30 PDT"]
[Termination "OMatteoWuO ha vinto per abbandono"]

1. d4 {[%clk 0:11:56.7]} 1... c5 {[%clk 0:11:42.6]} 2. d5 {[%clk 0:11:54.2]}
2... d6 {[%clk 0:11:43.1]} 3. Nc3 {[%clk 0:11:48.7]} 3... Nf6 {[%clk 0:11:37.4]}
4. Nf3 {[%clk 0:11:39.1]} 4... g6 {[%clk 0:11:37.5]} 5. e4 {[%clk 0:11:35.2]}
5... Nbd7 {[%clk 0:11:37.7]} 6. Bd3 {[%clk 0:11:25.8]} 6... Bg7 {[%clk
0:11:39.4]} 7. O-O {[%clk 0:10:58.9]} 7... O-O {[%clk 0:11:37.3]} 8. Be3 {[%clk
0:10:55.1]} 8... a6 {[%clk 0:11:39.1]} 9. a4 {[%clk 0:10:54.1]} 9... b6 {[%clk
0:11:39.1]} 10. Qd2 {[%clk 0:10:51.9]} 10... Re8 {[%clk 0:11:37.4]} 11. Bh6
{[%clk 0:10:49.5]} 11... Bh8 {[%clk 0:11:38.1]} 12. Ne2 {[%clk 0:10:39.8]} 12...
Qc7 {[%clk 0:11:39.4]} 13. c4 {[%clk 0:10:35]} 13... Ng4 {[%clk 0:11:35.1]} 14.
Ng3 {[%clk 0:10:24.5]} 14... Nde5 {[%clk 0:11:30.2]} 15. Nxe5 {[%clk 0:10:21]}
15... Nxe5 {[%clk 0:11:29.8]} 16. Be2 {[%clk 0:10:00.8]} 16... e6 {[%clk
0:10:48.4]} 17. b3 {[%clk 0:09:50.2]} 17... exd5 {[%clk 0:10:49.4]} 18. exd5
{[%clk 0:09:50.2]} 18... Nd7 {[%clk 0:10:30.3]} 19. Bg4 {[%clk 0:09:30.4]} 19...
Nf6 {[%clk 0:10:31.1]} 20. Bxc8 {[%clk 0:09:28.8]} 20... Raxc8 {[%clk
0:10:31.6]} 21. Qg5 {[%clk 0:09:10.4]} 21... Re5 {[%clk 0:10:29.4]} 22. Qd2
{[%clk 0:08:37]} 22... Rce8 {[%clk 0:10:28.6]} 23. Rfe1 {[%clk 0:08:37.3]} 23...
Qe7 {[%clk 0:10:19.6]} 24. Re3 {[%clk 0:07:57.5]} 24... Ng4 {[%clk 0:10:17]} 25.
Bg5 {[%clk 0:07:37.3]} 25... f6 {[%clk 0:10:10.1]} 26. Rxe5 {[%clk 0:07:21.2]}
26... Qxe5 {[%clk 0:10:04.9]} 27. Bf4 {[%clk 0:07:14.3]} 27... Qxa1+ {[%clk
0:10:03.7]} 28. Nf1 {[%clk 0:07:13.7]} 28... Re1 {[%clk 0:09:45.1]} 29. Qd3
{[%clk 0:06:55.5]} 29... Rd1 {[%clk 0:09:35.5]} 30. Qe2 {[%clk 0:06:52.6]} 30...
Re1 {[%clk 0:09:26.2]} 31. Qd3 {[%clk 0:06:43.7]} 31... Rxf1+ {[%clk 0:09:27.2]}
32. Qxf1 {[%clk 0:06:44.2]} 32... Ne5 {[%clk 0:09:21.9]} 33. Qxa1 {[%clk
0:06:43.1]} 33... f5 {[%clk 0:09:05.8]} 34. Bxe5 {[%clk 0:06:34.4]} 34... Bxe5
{[%clk 0:09:05.8]} 35. Qe1 {[%clk 0:06:33.9]} 35... Kf7 {[%clk 0:09:06.3]} 36.
g3 {[%clk 0:06:32.9]} 36... Kf6 {[%clk 0:09:07.3]} 37. f4 {[%clk 0:06:30.7]}
37... Bd4+ {[%clk 0:09:08.8]} 38. Kg2 {[%clk 0:06:30.9]} 38... Kg7 {[%clk
0:09:03]} 39. Qe7+ {[%clk 0:06:27.5]} 39... Kh6 {[%clk 0:09:03.9]} 40. Qxd6
{[%clk 0:06:26.3]} 40... b5 {[%clk 0:09:01]} 41. axb5 {[%clk 0:06:12.9]} 41...
axb5 {[%clk 0:09:02.6]} 42. cxb5 {[%clk 0:05:54.8]} 1-0